fUSD/lending_fUSD_20250828
["ID","MTS","AMOUNT","RATE_DAILY","PERIOD"]
[381872221,1756383054742,-83.61448307,0.000207,2]
[381872222,1756383054752,-228.959388,0.000207,2]
[381872223,1756383054763,-151.0,0.000207,2]
[381872224,1756383054773,-226.289401,0.000207,2]
[381872225,1756383054783,-151.0,0.000207,2]
[381872226,1756383054795,-228.959388,0.000207,2]
[381872227,1756383054807,-151.0,0.000207,2]
[381872228,1756383054818,-228.959398,0.000207,2]
[381872229,1756383054830,-151.0,0.000207,2]
[381872230,1756383054843,-151.0,0.000207,2]
[381872231,1756383054853,-155.548692,0.000207,2]
[381872232,1756383054863,-161.659204,0.000207,2]
[381872233,1756383054875,-161.659204,0.000207,2]
[381872234,1756383054885,-200.478709,0.000207,2]
[381872235,1756383054895,-161.659204,0.000207,2]
[381872236,1756383054906,-200.478709,0.000207,2]
[381872237,1756383054916,-161.659213,0.000207,2]
[381872238,1756383054928,-182.84963561,0.000207,2]
[381872239,1756383054954,-351.089093,0.0002,2]
[381872240,1756383054968,-17.62907339,0.000207,2]
[381872241,1756383054980,-200.478705,0.000207,2]
[381872242,1756383054991,-268.708747,0.000207,2]
[381872243,1756383055001,-2732.39438191,0.000207,2]
[381872244,1756383104650,-400.0,0.00017998,2]
[381872245,1756383104673,-400.0,0.00017999,2]
[381872246,1756383104696,-400.0,0.00018272,2]
[381872247,1756383104720,-400.0,0.00018546,2]
[381872248,1756383104743,-400.0,0.0001882,2]
[381872249,1756383104766,-351.089093,0.00019,2]
[381872250,1756383104789,-351.089093,0.00019,2]
[381872251,1756383104812,-351.089093,0.00019,2]
[381872252,1756383104838,-150.67,0.00019,2]
[381872253,1756383104862,-400.0,0.00019094,2]
[381872254,1756383104885,-400.0,0.00019368,2]
[381872255,1756383129137,400.0,0.00017998,2]
[381872262,1756383157383,95596.062721,0.000179,2]
[381872263,1756383157404,87828.030279,0.000179,2]
[381872267,1756383160314,400.0,0.00017998,2]
[381872268,1756383160551,400.0,0.00018272,2]
[381872269,1756383160793,400.0,0.00018546,2]
[381872270,1756383161038,400.0,0.0001882,2]
[381872271,1756383161294,400.0,0.00019094,2]
[381872272,1756383161527,400.0,0.00019368,2]
[381872273,1756383163794,400.0,0.00017998,2]
[381872274,1756383164040,178.72,0.00018272,2]
[381872277,1756383193479,329.4426,0.00017889,2]
[381872279,1756383203344,200.0,0.00019195,2]
[381872282,1756383238801,150.0,0.00017998,2]
[381872283,1756383260174,427.86824875,0.00017999,2]
[381872284,1756383299549,400.0,0.00017998,2]
[381872285,1756383299807,400.0,0.00018272,2]
[381872286,1756383300042,400.0,0.00018546,2]
[381872287,1756383327439,400.0,0.00017999,2]
[381872288,1756383327725,400.0,0.00018273,2]
[381872289,1756383328082,193.34,0.00018547,2]
[381872290,1756383352919,176.186822,0.00017988,2]
[381872291,1756383357301,186.003758,0.00017988,2]
[381872292,1756383357821,186.003758,0.00018719,2]
[381872293,1756383383682,400.0,0.00017998,2]
[381872294,1756383383945,400.0,0.00018272,2]
[381872295,1756383384230,199.21,0.00018546,2]
[381872297,1756383393381,400.0,0.00017998,2]
[381872298,1756383394455,400.0,0.00017998,2]
[381872299,1756383394706,400.0,0.00018272,2]
[381872300,1756383395080,400.0,0.00018546,2]
[381872301,1756383395329,400.0,0.0001882,2]
[381872302,1756383395570,400.0,0.00019094,2]
[381872303,1756383395810,400.0,0.00019368,2]
[381872305,1756383399363,400.0,0.00017998,2]
[381872307,1756383407838,400.0,0.00017998,2]
[381872308,1756383409796,400.0,0.00017998,2]
[381872309,1756383410070,345.19453425,0.00018272,2]
[381872310,1756383410094,204.24546575,0.00018272,2]
[381872311,1756383429786,400.0,0.00017998,2]
[381872313,1756383433023,2000.0,0.000189,2]
[381872315,1756383457501,400.0,0.00017999,2]
[381872316,1756383457751,400.0,0.00018273,2]
[381872317,1756383457992,400.0,0.00018547,2]
[381872318,1756383458263,266.64,0.00018821,2]
[381872323,1756383489649,400.0,0.00017998,2]
[381872324,1756383489888,400.0,0.00018272,2]
[381872325,1756383490118,194.33,0.00018546,2]
[381872332,1756383532825,400.0,0.00017998,2]
[381872333,1756383533073,400.0,0.00018272,2]
[381872334,1756383533340,400.0,0.00018546,2]
[381872335,1756383533583,400.0,0.0001882,2]
[381872336,1756383533847,400.0,0.00019094,2]
[381872337,1756383534132,523.92940394,0.00019368,2]
[381872346,1756383600085,169.9,0.00030136,120]
[381872442,1756383769757,165.07,0.00019372,2]
[381872444,1756383772532,666.0,0.00019364,3]
[381872494,1756383884449,442.34,0.00017999,2]
[381872495,1756383908957,88894.44513031,0.00018,2]
[381872496,1756383968333,4641.7021794,0.000105,2]
[381872497,1756384036265,-152.0,0.00013699,2]
[381872498,1756384038675,-105.08,0.00013699,2]
[381872502,1756384103237,32.0778206,0.0001,2]
[381872503,1756384103259,1865.18245483,0.0001,2]
[381872504,1756384104947,194.92,7.888e-05,2]
[381872505,1756384104969,189.79112086,7.888e-05,2]
[381872506,1756384111413,219.91695642,0.0001,2]
[381872507,1756384114836,2686.37545602,0.0001,2]
[381872509,1756384124929,5038.73401187,0.0001,2]
[381872510,1756384124950,4495.93688154,0.0001,2]
[381872511,1756384135662,-500.0,0.00015397,2]
[381872512,1756384135690,-500.0,0.00015397,2]
[381872513,1756384135718,-500.0,0.00015397,2]
[381872514,1756384135746,-261.1591875,0.00015397,2]
[381872515,1756384135773,-500.0,0.00015397,2]
[381872516,1756384135801,-500.0,0.00015397,2]
[381872517,1756384135829,-500.0,0.00015397,2]
[381872518,1756384135858,-500.0,0.00015397,2]
[381872519,1756384135885,-1200.0,0.00015398,2]
[381872520,1756384135913,-300.0,0.00015398,2]
[381872521,1756384135945,-172.35260939,0.00015398,2]
[381872522,1756384135972,-251.0,0.00015399,2]
[381872523,1756384136000,-2423.37981936,0.000154,2]
[381872524,1756384136013,-500.0,0.000154,2]
[381872525,1756384136024,-107.52469314,0.000154,2]
[381872526,1756384136033,-392.0,0.00016845,2]
[381872527,1756384136044,-0.47530686,0.00016845,2]
[381872528,1756384136055,-299.52469314,0.00016845,2]
[381872529,1756384136064,-200.47530686,0.00016938,2]
[381872530,1756384136076,-49.52469314,0.00016938,2]
[381872531,1756384136086,-211.63449436,0.00016938,2]
[381872532,1756384136097,-39.36550564,0.00016938,2]
[381872533,1756384136106,-150.0,0.00016938,2]
[381872534,1756384136115,-310.63449436,0.00017,2]
[381872535,1756384136126,-500.0,0.00017,2]
[381872536,1756384136143,-500.0,0.00017,2]
[381872537,1756384136155,-500.0,0.00017,2]
[381872538,1756384136169,-1200.0,0.00017,2]
[381872539,1756384136183,-300.0,0.00017,2]
[381872540,1756384136194,-172.35260939,0.00017,2]
[381872541,1756384136207,-251.0,0.00017,2]
[381872542,1756384136219,-3030.9045125,0.00017,2]
[381872571,1756384231684,-238.0,0.00016999,2]
[381872572,1756384231694,-105.33,0.00016999,2]
[381872573,1756384231739,-1094.67,0.00016999,2]
[381872574,1756384231749,-10033.60133184,0.00017,2]
[381872575,1756384231850,-1000.0,0.00017,2]
[381872576,1756384231861,-444.3060594,0.00017,2]
[381873140,1756384237605,-431.69598331,0.00017,2]
[381873142,1756384237617,-1096.96579882,0.00017,2]
[381873144,1756384237627,-1470.58878103,0.00017197,2]
[381873148,1756384237659,-436.0,0.00017197,2]
[381873151,1756384237670,-2198.0,0.00017197,2]
[381873173,1756384237874,-9111.75203737,0.00017197,2]
[381873175,1756384237883,-1000.0,0.00017879,2]
[381873177,1756384237893,-200.0,0.000179,6]
[381873179,1756384237902,-217.23524532,0.000179,2]
[381873181,1756384237915,-323.25577666,0.000179,2]
[381873183,1756384237924,-907.27131598,0.000179,2]
[381873185,1756384237933,-3002.94748066,0.00017909,2]
[381873187,1756384237942,-550.04928332,0.00017973,2]
[381873189,1756384237951,-500.0,0.00017973,2]
[381873191,1756384237961,-156.233097,0.00017988,2]
[381873193,1756384237972,-157.352458,0.00017988,2]
[381873195,1756384237981,-550.0,0.00017998,2]
[381873196,1756384237990,-400.0,0.00017999,2]
[381873197,1756384238000,-400.0,0.00017999,2]
[381873199,1756384238009,-400.0,0.00017999,2]
[381873201,1756384238019,-400.0,0.00017999,2]
[381873203,1756384238029,-400.0,0.00017999,2]
[381873205,1756384238039,-579.47,0.00017999,2]
[381873207,1756384238048,-400.0,0.00017999,2]
[381873209,1756384238058,-400.0,0.00017999,2]
[381873211,1756384238068,-400.0,0.00017999,2]
[381873213,1756384238077,-400.0,0.00017999,2]
[381873215,1756384238087,-400.46,0.00017999,2]
[381873217,1756384238097,-400.0,0.00017999,2]
[381873219,1756384238107,-460.72,0.00017999,2]
[381873221,1756384238117,-400.0,0.00017999,2]
[381873223,1756384238126,-283.22718831,0.00017999,2]
[381873225,1756384238135,-400.0,0.00017999,2]
[381873227,1756384238145,-400.0,0.00017999,2]
[381873229,1756384238154,-400.0,0.00017999,2]
[381873231,1756384238163,-400.0,0.00017999,2]
[381873233,1756384238174,-985331.91181922,0.00018,2]
[381873235,1756384238183,-1679.03679826,0.00018,2]
[381873237,1756384238196,-1841560.6262837,0.00018,2]
[381873239,1756384238212,-7288.13307113,0.00018,2]
[381873241,1756384238225,-8065.48522553,0.00018,2]
[381873242,1756384238238,-1417.38767714,0.00018,2]
[381873243,1756384238249,-670.3099998,0.00018,2]
[381873244,1756384238287,-345.87173433,0.00017999,2]
[381873245,1756384238298,-54.12826567,0.00017999,2]
[381873246,1756384238307,-433.61675433,0.00018,2]
[381873247,1756384238318,-2632.01999999,0.00018,2]
[381873248,1756384238329,-11574.39984868,0.00018,2]
[381873249,1756384238341,-37679.97177054,0.00018,2]
[381873250,1756384238352,-7200.25256017,0.00018,2]
[381873525,1756384241617,-400.0,0.00017999,2]
[381873527,1756384241627,-1368.49131959,0.00018,2]
[381873529,1756384241638,-7877.41383101,0.00018,2]
[381873550,1756384241868,-400.0,0.00017999,2]
[381873552,1756384241877,-419027.29099911,0.00018,2]
[381873554,1756384241886,-99903.79251763,0.00018,2]
[381873556,1756384241895,-159.54900556,0.00018,2]
[381873558,1756384241904,-1167.20247316,0.00018,2]
[381873560,1756384241913,-1745.62449962,0.000181,2]
[381873562,1756384241922,-1100.0,0.000182,2]
[381873564,1756384241932,-400.0,0.00018273,2]
[381873566,1756384241940,-400.0,0.00018273,2]
[381873568,1756384241949,-300.66,0.00018273,2]
[381873571,1756384241967,-579.47,0.00018273,2]
[381873573,1756384241980,-533.71,0.00018273,2]
[381873575,1756384241990,-400.0,0.00018273,2]
[381873577,1756384241999,-400.0,0.00018273,2]
[381873579,1756384242009,-157.2,0.00018273,2]
[381873581,1756384242019,-211.16,0.00018273,2]
[381873583,1756384242028,-252.09,0.00018273,2]
[381873585,1756384242038,-152.92,0.00018273,2]
[381873587,1756384242047,-448.92,0.00018273,2]
[381873589,1756384242056,-278.14,0.00018273,2]
[381873591,1756384242066,-200.0,0.00018487,2]
[381873593,1756384242075,-400.0,0.00018547,2]
[381873595,1756384242084,-491.78,0.00018547,2]
[381873597,1756384242093,-579.47,0.00018547,2]
[381873600,1756384242103,-400.0,0.00018547,2]
[381873602,1756384242112,-400.0,0.00018547,2]
[381873604,1756384242122,-217.24,0.00018583,2]
[381873606,1756384242131,-907.27131594,0.00018656,2]
[381873608,1756384242141,-250.0,0.00018699,2]
[381873610,1756384242151,-150.89,0.000188,2]
[381873612,1756384242160,-150.89,0.000188,2]
[381873614,1756384242169,-150.89,0.000188,2]
[381873616,1756384242179,-150.89,0.000188,2]
[381873618,1756384242188,-150.89,0.000188,2]
[381873620,1756384242201,-150.89,0.000188,2]
[381873622,1756384242210,-150.89,0.000188,2]
[381873624,1756384242219,-150.89,0.000188,2]
[381873626,1756384242232,-150.89,0.000188,2]
[381873628,1756384242243,-150.89,0.000188,2]
[381873630,1756384242252,-150.89,0.000188,2]
[381873632,1756384242262,-150.89,0.000188,2]
[381873634,1756384242273,-150.89,0.000188,2]
[381873636,1756384242282,-150.89,0.000188,2]
[381873638,1756384242292,-150.89,0.000188,2]
[381873640,1756384242302,-150.89,0.000188,2]
[381873642,1756384242311,-150.89,0.000188,2]
[381873644,1756384242323,-150.89,0.000188,2]
[381873647,1756384242333,-150.89,0.000188,2]
[381873649,1756384242342,-150.89,0.000188,2]
[381873651,1756384242351,-150.89,0.000188,2]
[381873653,1756384242363,-150.89,0.000188,2]
[381873655,1756384242372,-150.89,0.000188,2]
[381873657,1756384242381,-150.89,0.000188,2]
[381873659,1756384242391,-150.89,0.000188,2]
[381873661,1756384242400,-150.89,0.000188,2]
[381873663,1756384242410,-150.89,0.000188,2]
[381873665,1756384242419,-150.89,0.000188,2]
[381873667,1756384242429,-150.89,0.000188,2]
[381873669,1756384242439,-150.89,0.000188,2]
[381873671,1756384242448,-150.89,0.000188,2]
[381873673,1756384242458,-150.89,0.000188,2]
[381873675,1756384242468,-150.89,0.000188,2]
[381873677,1756384242481,-150.89,0.000188,2]
[381873679,1756384242490,-150.89,0.000188,2]
[381873681,1756384242499,-150.89,0.000188,2]
[381873683,1756384242509,-150.89,0.000188,2]
[381873685,1756384242519,-150.89,0.000188,2]
[381873687,1756384242529,-150.89,0.000188,2]
[381873689,1756384242539,-150.89,0.000188,2]
[381873691,1756384242548,-150.89,0.00018811,2]
[381873695,1756384242560,-400.0,0.00018821,2]
[381873698,1756384242570,-579.47,0.00018821,2]
[381873701,1756384242579,-400.0,0.00018821,2]
[381873704,1756384242589,-501.36298227,0.000189,3]
[381873708,1756384242599,-363.52,0.00018941,2]
[381873711,1756384242609,-167.0,0.00019078,2]
[381873713,1756384242619,-393.72,0.00019095,2]
[381873715,1756384242628,-579.47,0.00019095,2]
[381873717,1756384242638,-400.0,0.00019095,2]
[381873719,1756384242647,-579.47,0.00019369,2]
[381873721,1756384242656,-400.0,0.00019369,2]
[381873724,1756384242665,-2948.9642433,0.00019376,2]
[381873726,1756384242674,-907.27131594,0.00019411,2]
[381873728,1756384242683,-481.39952007,0.00019434,2]
[381873730,1756384242693,-322.6107,0.00019526,2]
[381873732,1756384242702,-721.12765535,0.00019526,2]
[381873734,1756384242711,-1000.0,0.00019526,2]
[381873736,1756384242720,-900.00610444,0.00019526,2]
[381873738,1756384242731,-200.0,0.00019526,2]
[381873740,1756384242740,-209.40437684,0.00019526,2]
[381873742,1756384242750,-1111.56544316,0.00019526,2]
[381873744,1756384242759,-500.0,0.00019526,2]
[381873746,1756384242769,-274.52666354,0.00019526,2]
[381873748,1756384242779,-151.0,0.00019526,2]
[381873750,1756384242788,-277.35679052,0.00019526,2]
[381873752,1756384242797,-151.4,0.00019537,2]
[381873754,1756384242806,-151.0,0.00019538,2]
[381873756,1756384242816,-150.52,0.00019538,2]
[381873758,1756384242826,-150.27,0.00019538,2]
[381873760,1756384242835,-150.71,0.00019538,2]
[381873762,1756384242844,-152.91,0.00019539,2]
[381873764,1756384242853,-151.78,0.0001954,2]
[381873766,1756384242862,-151.15,0.0001954,2]
[381873768,1756384242872,-152.37,0.0001954,2]
[381873770,1756384242881,-186.003758,0.00019541,2]
[381873772,1756384242890,-224.02755604,0.00019541,2]
[381873774,1756384242900,-150.12,0.00019541,2]
[381873776,1756384242909,-152.17,0.00019541,2]
[381873778,1756384242919,-151.21,0.00019541,2]
[381873780,1756384242928,-150.81,0.00019541,2]
[381873782,1756384242937,-151.48,0.00019541,2]
[381873784,1756384242946,-151.95,0.00019542,2]
[381873786,1756384242954,-152.38,0.00019546,2]
[381873788,1756384242963,-150.92,0.00019563,2]
[381873790,1756384242974,-224.02755604,0.00019589,2]
[381873792,1756384242985,-217.23524532,0.00019614,2]
[381873794,1756384242994,-150.94,0.00019641,2]
[381873796,1756384243003,-152.52,0.00019641,2]
[381873798,1756384243012,-151.76,0.00019641,2]
[381873800,1756384243022,-152.46,0.00019641,2]
[381873802,1756384243031,-152.07,0.00019641,2]
[381873804,1756384243041,-150.97,0.00019641,2]
[381873806,1756384243050,-150.7,0.00019641,2]
[381873808,1756384243060,-151.93,0.00019641,2]
[381873810,1756384243071,-152.15,0.00019641,2]
[381873812,1756384243080,-151.5,0.00019641,2]
[381873814,1756384243090,-150.98,0.00019642,2]
[381873816,1756384243100,-152.84,0.00019642,2]
[381873818,1756384243110,-151.89,0.00019642,2]
[381873820,1756384243120,-151.71,0.00019642,2]
[381873822,1756384243129,-151.91,0.00019642,2]
[381873824,1756384243138,-152.99,0.00019642,2]
[381873826,1756384243148,-151.74,0.00019642,2]
[381873828,1756384243157,-151.98,0.00019642,2]
[381873830,1756384243167,-152.88,0.00019642,2]
[381873832,1756384243176,-152.7,0.00019642,2]
[381873834,1756384243186,-150.99,0.00019642,2]
[381873837,1756384243199,-150.73,0.00019642,2]
[381873839,1756384243208,-152.51,0.00019642,2]
[381873841,1756384243217,-150.95,0.00019642,2]
[381873843,1756384243229,-152.99,0.00019642,2]
[381873845,1756384243239,-152.72,0.00019642,2]
[381873847,1756384243248,-152.57,0.00019642,2]
[381873849,1756384243257,-152.97,0.00019642,2]
[381873851,1756384243266,-150.6,0.00019642,2]
[381873853,1756384243278,-151.04,0.00019642,2]
[381873855,1756384243287,-152.13,0.00019642,2]
[381873857,1756384243299,-150.0,0.00019642,2]
[381873859,1756384243310,-150.0,0.00019642,2]
[381873861,1756384243319,-150.0,0.00019642,2]
[381873863,1756384243328,-300.0,0.00019642,2]
[381873865,1756384243337,-150.0,0.00019642,2]
[381873867,1756384243346,-500.0,0.00019642,2]
[381873869,1756384243355,-240.14083791,0.00019642,2]
[381873871,1756384243365,-150.0,0.00019642,2]
[381873873,1756384243375,-150.0,0.00019642,2]
[381873875,1756384243384,-579.47,0.00019643,2]
[381873877,1756384243395,-154.54208669,0.00019643,2]
[381873879,1756384243404,-250.0,0.00019667,2]
[381873881,1756384243413,-913.633,0.00019693,2]
[381873883,1756384243423,-160.0,0.00019693,7]
[381873885,1756384243431,-163.00794267,0.00019693,2]
[381873887,1756384243442,-658.0028638,0.00019862,2]
[381873889,1756384243450,-200.0,0.00019876,2]
[381873891,1756384243459,-3045.3204812,0.000199,3]
[381873893,1756384243469,-150.0,0.00019916,2]
[381873895,1756384243480,-300.0,0.00019916,2]
[381873897,1756384243490,-500.0,0.00019916,2]
[381873899,1756384243499,-150.0,0.00019916,2]
[381873901,1756384243509,-150.0,0.00019917,2]
[381873903,1756384243522,-188.0,0.00019917,2]
[381873905,1756384243531,-250.0,0.00019917,2]
[381873907,1756384243541,-500.0,0.00019917,2]
[381873909,1756384243551,-500.0,0.00019917,2]
[381873911,1756384243560,-500.0,0.00019917,2]
[381873913,1756384243570,-150.0,0.00019917,2]
[381873916,1756384243579,-500.0,0.00019917,2]
[381873917,1756384243589,-579.47,0.00019917,2]
[381873920,1756384243599,-500.0,0.00019917,2]
[381873922,1756384243608,-500.0,0.00019917,2]
[381873924,1756384243617,-150.0,0.00019917,2]
[381873926,1756384243628,-150.0,0.00019917,2]
[381873928,1756384243638,-275.25933414,0.00019917,2]
[381873930,1756384243647,-150.0,0.00019917,2]
[381873932,1756384243656,-150.0,0.00019917,2]
[381873934,1756384243665,-150.89,0.0001994,2]
[381873936,1756384243675,-40088.83750345,0.0001995,15]
[381873938,1756384243684,-150.89,0.0001997,2]
[381873939,1756384243693,-501.00768718,0.00019973,2]
[381873942,1756384243703,-150.89,0.00019978,2]
[381873944,1756384243712,-85993.8103989,0.0001998,2]
[381873946,1756384243725,-150.0,0.0001998,2]
[381873948,1756384243737,-787.49125167,0.00019981,2]
[381873950,1756384243746,-1003.66532076,0.00019982,2]
[381873952,1756384243755,-1219.83938984,0.00019983,2]
[381873954,1756384243764,-1436.01345893,0.00019984,2]
[381873956,1756384243773,-1652.18752802,0.00019986,2]
[381873958,1756384243783,-258.57,0.00019987,2]
[381873960,1756384243792,-1868.3615971,0.00019987,2]
[381873962,1756384243801,-2084.53566619,0.00019988,2]
[381873964,1756384243810,-2300.70973527,0.00019989,2]
[381873966,1756384243819,-11974.71665456,0.0001999,2]
[381873968,1756384243829,-2516.88380436,0.0001999,2]
[381873970,1756384243838,-150.89,0.0001999,2]
[381873972,1756384243847,-150.89,0.0001999,2]
[381873974,1756384243856,-150.89,0.0001999,2]
[381873976,1756384243865,-150.89,0.0001999,2]
[381873978,1756384243875,-150.89,0.0001999,2]
[381873979,1756384243884,-150.89,0.0001999,2]
[381873981,1756384243893,-150.89,0.0001999,2]
[381873983,1756384243903,-45955.33779509,0.0002,2]
[381873985,1756384243913,-2527.88719574,0.0002,2]
[381873987,1756384243921,-1504.20432676,0.0002,2]
[381873989,1756384243931,-6009.4323926,0.0002,2]
[381873991,1756384243940,-25111.23092401,0.0002,2]
[381873993,1756384243951,-44466.69367344,0.0002,5]
[381873995,1756384243962,-8300.0,0.0002,4]
[381873997,1756384243972,-5739.32202512,0.0002,2]
[381873999,1756384243984,-3950.0,0.0002,2]
[381874001,1756384243994,-1270.28832167,0.0002,2]
[381874003,1756384244003,-7236.64685182,0.0002,2]
[381874005,1756384244012,-150.0,0.0002,2]
[381874007,1756384244022,-4616.94679652,0.0002,5]
[381874009,1756384244031,-1025.37511033,0.0002,2]
[381874011,1756384244040,-2809.10059714,0.0002,2]
[381874013,1756384244050,-90319.11603699,0.0002,2]
[381874015,1756384244059,-99129.81531165,0.0002,2]
[381874017,1756384244068,-1297.30985863,0.0002,2]
[381874019,1756384244077,-151.0,0.0002,2]
[381874021,1756384244086,-151.0,0.0002,2]
[381874023,1756384244095,-151.0,0.0002,2]
[381874025,1756384244104,-151.0,0.0002,2]
[381874027,1756384244113,-151.0,0.0002,2]
[381874029,1756384244124,-151.0,0.0002,2]
[381874031,1756384244133,-151.0,0.0002,2]
[381874033,1756384244142,-255.27331,0.0002,2]
[381874034,1756384244152,-7743.006466,0.0002,2]
[381874036,1756384244161,-255.27331,0.0002,2]
[381874038,1756384244170,-7743.006466,0.0002,2]
[381874040,1756384244179,-225.915973,0.0002,2]
[381874042,1756384244191,-151.0,0.0002,2]
[381874044,1756384244201,-255.27331,0.0002,2]
[381874046,1756384244210,-7743.006466,0.0002,2]
[381874049,1756384244227,-225.915973,0.0002,2]
[381874051,1756384244240,-7743.006466,0.0002,2]
[381874053,1756384244252,-255.27331,0.0002,2]
[381874055,1756384244265,-225.915973,0.0002,2]
[381874058,1756384244278,-225.915973,0.0002,2]
[381874060,1756384244290,-151.0,0.0002,2]
[381874062,1756384244302,-151.0,0.0002,2]
[381874064,1756384244312,-151.0,0.0002,2]
[381874066,1756384244322,-220.562036,0.0002,2]
[381874068,1756384244334,-151.0,0.0002,2]
[381874071,1756384244345,-151.0,0.0002,2]
[381874073,1756384244356,-151.0,0.0002,2]
[381874075,1756384244368,-550.946038,0.0002,2]
[381874077,1756384244380,-151.0,0.0002,2]
[381874080,1756384244392,-550.946038,0.0002,2]
[381874082,1756384244404,-1125.805275,0.0002,2]
[381874084,1756384244415,-181.799006,0.0002,2]
[381874086,1756384244427,-550.946038,0.0002,2]
[381874088,1756384244438,-151.0,0.0002,2]
[381874090,1756384244449,-151.0,0.0002,2]
[381874093,1756384244460,-550.946038,0.0002,2]
[381874095,1756384244473,-1125.805275,0.0002,2]
[381874097,1756384244485,-181.799006,0.0002,2]
[381874099,1756384244496,-151.0,0.0002,2]
[381874101,1756384244507,-1125.805275,0.0002,2]
[381874103,1756384244518,-181.799006,0.0002,2]
[381874105,1756384244528,-1125.805275,0.0002,2]
[381874107,1756384244538,-181.799006,0.0002,2]
[381874109,1756384244547,-4000.0,0.0002,4]
[381874111,1756384244559,-151.0,0.0002,2]
[381874114,1756384244571,-151.0,0.0002,2]
[381874116,1756384244582,-151.0,0.0002,2]
[381874118,1756384244593,-2079.307895,0.0002,2]
[381874120,1756384244604,-2079.307895,0.0002,2]
[381874122,1756384244614,-151.0,0.0002,2]
[381874124,1756384244625,-151.0,0.0002,2]
[381874126,1756384244636,-2079.307895,0.0002,2]
[381874128,1756384244647,-151.784296,0.0002,2]
[381874131,1756384244658,-151.0,0.0002,2]
[381874133,1756384244669,-2079.307895,0.0002,2]
[381874135,1756384244679,-151.0,0.0002,2]
[381874137,1756384244690,-286.288454,0.0002,2]
[381874139,1756384244701,-222.690955,0.0002,2]
[381874141,1756384244712,-286.288454,0.0002,2]
[381874143,1756384244722,-286.288454,0.0002,2]
[381874145,1756384244735,-286.288454,0.0002,2]
[381874147,1756384244745,-631.76357,0.0002,2]
[381874149,1756384244756,-631.76357,0.0002,2]
[381874152,1756384244767,-631.76357,0.0002,2]
[381874154,1756384244778,-195.966966,0.0002,2]
[381874156,1756384244789,-158.173063,0.0002,2]
[381874158,1756384244800,-151.296892,0.0002,2]
[381874160,1756384244810,-202.697151,0.0002,2]
[381874162,1756384244821,-631.76357,0.0002,2]
[381874164,1756384244830,-151.0,0.0002,2]
[381874166,1756384244842,-202.697151,0.0002,2]
[381874168,1756384244852,-195.966966,0.0002,2]
[381874170,1756384244863,-151.0,0.0002,2]
[381874172,1756384244872,-202.697151,0.0002,2]
[381874175,1756384244883,-195.966966,0.0002,2]
[381874177,1756384244893,-151.0,0.0002,2]
[381874179,1756384244903,-151.0,0.0002,2]